bitfinex-derivatives/quotes_SOLF0:USTF0_20241017
["timestamp","ask_amount","ask_price","bid_price","bid_amount"]
[1729170507290,3.2797,152.5,152.47,3.28]
[1729170507993,3.2797,152.49,152.47,3.28]
[1729170508183,17.1345,152.53,152.47,3.28]
[1729170508689,3.2796,152.5,152.47,3.28]
[1729170509392,3.2791,152.52,152.45,15.75]
[1729170509692,1.3845,152.53,152.45,15.75]
[1729170509893,3.2793,152.51,152.47,3.28]
[1729170510189,3.2793,152.51,152.45,15.75]
[1729170510782,3.2793,152.51,152.49,3.2796]
[1729170510979,1.3845,152.53,152.49,6.60485163]
[1729170511180,6.5549,152.6,152.47,15.75]
[1729170511384,8.9202,152.59,152.49,15.75]
[1729170511589,3.2782,152.56,152.49,19.10182478]
[1729170511992,4.82,152.58,152.49,19.10182478]
[1729170512382,3.2783,152.56,152.49,19.10182478]
[1729170512587,3.2783,152.56,152.53,3.2787]
[1729170513601,4.82,152.57,152.55,3.2782]
[1729170513896,6.1419,152.59,152.53,15.75]
[1729170514489,6.1419,152.59,152.51,23.85108633]
[1729170514697,3.278,152.57,152.53,3.2788]
[1729170514895,21.8919,152.59,152.53,3.2788]
[1729170515392,3.2786,152.54,152.51,3.2791]
[1729170515699,15.75,152.57,152.5,15.75]
[1729170515994,3.2784,152.55,152.52,3.2789]
[1729170516290,3.2784,152.55,152.5,15.75]
[1729170516494,3.2784,152.55,152.53,3.2788]
[1729170517093,21.8919,152.59,152.5,15.75]
[1729170517398,21.8919,152.59,152.51,15.75]
[1729170517700,3.2781,152.57,152.54,3.2785]
[1729170518097,6.1419,152.59,152.53,15.75]
[1729170518402,3.2779,152.58,152.55,3.2782]
[1729170523904,3.278,152.57,152.55,3.2782]
[1729170529808,3.278,152.57,152.54,10.08]
[1729170530102,3.278,152.57,152.54,13.3585]
[1729170530307,3.278,152.57,152.54,10.08]
[1729170530512,3.278,152.57,152.55,3.2783]
[1729170531297,2.8308,152.63,152.56,10.08]
[1729170531607,10.08,152.65,152.6,10.08]
[1729170531805,4.82,152.64,152.6,10.08]
[1729170532204,3.2769,152.63,152.6,13.3573]
[1729170532607,3.277,152.62,152.6,13.3573]
[1729170533303,3.277,152.62,152.6,10.08]
[1729170533513,10.08,152.63,152.58,10.08]
[1729170533813,1.3426,152.66,152.59,10.08]
[1729170534010,4.82,152.65,152.61,10.08]
[1729170534406,1.3426,152.66,152.61,10.08]
[1729170534613,9.4386,152.66,152.62,10.08]
[1729170535107,6.1626,152.66,152.62,10.08]
[1729170535311,10.08,152.64,152.59,10.08]
[1729170535905,3.2768,152.63,152.6,3.2772]
[1729170536305,10.08,152.63,152.56,8.18002409]
[1729170536612,3.2772,152.61,152.58,10.08]
[1729170536813,3.34656093,152.76,152.59,10.08]
[1729170537011,5.17753715,152.75,152.67,10.08]
[1729170537206,5.17753715,152.75,152.69,10.08]
[1729170537207,1.01923715,152.74,152.69,10.08]
[1729170537409,1.01923715,152.74,152.69,13.3131406]
[1729170537599,3.2749,152.72,152.69,10.08]
[1729170537800,3.2749,152.72,152.68,3.2754]
[1729170538002,3.2749,152.72,152.68,6.49182085]
[1729170538206,3.2749,152.72,152.69,3.2754]
[1729170539711,9.3383,152.75,152.67,15.74]
[1729170539910,15.74,152.73,152.61,6.3355]
[1729170540211,15.74,152.73,152.63,15.74]
[1729170540515,3.2754,152.7,152.66,3.276]
[1729170540709,3.2754,152.7,152.65,3.34088666]
[1729170540909,15.74,152.73,152.63,20.92]
[1729170541112,3.2755,152.69,152.65,3.2761]
[1729170541312,3.2755,152.69,152.65,3.28256204]
[1729170541617,8.455,152.71,152.68,3.2756]
[1729170541819,5.18,152.71,152.66,3.27098034]
[1729170542005,5.18,152.71,152.63,20.92]
[1729170542815,3.2753,152.7,152.67,3.2758]
[1729170543813,5.18,152.71,152.65,3.2761]
[1729170544019,5.18,152.71,152.65,3.31489051]
[1729170544219,5.18,152.71,152.63,20.92]
[1729170544423,3.2753,152.7,152.66,3.2758]
[1729170544614,3.2753,152.7,152.66,6.62640849]
[1729170544813,3.2753,152.7,152.66,3.2758]
[1729170545013,3.2753,152.7,152.63,20.92]
[1729170545216,3.2753,152.7,152.67,3.2757]
[1729170546632,3.2755,152.69,152.66,3.276]
[1729170546815,20.92,152.71,152.61,16.8955]
[1729170547120,20.92,152.71,152.61,20.92]
[1729170548322,3.276,152.67,152.64,3.2763]
[1729170550623,3.276,152.67,152.64,6.63499306]
[1729170555826,20.92,152.71,152.63,3.2766]
[1729170556029,20.92,152.71,152.61,15.74]
[1729170556731,3.276,152.67,152.64,3.2764]
[1729170557833,3.276,152.66,152.64,3.2764]
[1729170558731,3.276,152.66,152.63,3.2765]
[1729170559731,3.2765,152.64,152.62,3.2767]
[1729170559931,3.2765,152.64,152.6,12.8026]
[1729170560428,10.07,152.65,152.6,1.3657]
[1729170560630,10.07,152.62,152.58,10.07]
[1729170561123,13.347,152.62,152.59,3.2773]
[1729170561330,13.347,152.62,152.58,10.07]
[1729170561529,10.07,152.62,152.58,10.07]
[1729170561728,3.2772,152.61,152.59,3.2774]
[1729170561927,10.07,152.64,152.59,10.07]
[1729170562630,10.07,152.66,152.62,10.07]
[1729170563037,3.2764,152.65,152.62,13.3467]
[1729170563239,5.18,152.67,152.62,10.07]
[1729170563533,3.2761,152.66,152.63,3.2765]
[1729170564334,3.2761,152.66,152.64,3.2764]
[1729170565131,18.5257,152.68,152.65,3.2762]
[1729170565332,8.4557,152.68,152.65,3.2762]
[1729170565531,8.4557,152.68,152.64,13.26559311]
[1729170565732,3.2755,152.69,152.66,3.2758]
[1729170566933,3.2764,152.65,152.62,3.2768]
[1729170567141,13.3464,152.65,152.62,3.2768]
[1729170568244,3.2768,152.63,152.61,1.3212]
[1729170568431,3.2768,152.63,152.6,3.2772]
[1729170568635,3.2768,152.63,152.59,5.18]
[1729170569440,3.2768,152.63,152.6,3.2773]
[1729170571733,3.2768,152.63,152.61,3.2771]
[1729170571930,3.2768,152.63,152.58,5.18]
[1729170572637,3.2768,152.63,152.61,3.2771]
[1729170577149,3.2764,152.65,152.63,3.2765]
[1729170581151,3.276,152.67,152.64,3.21654407]
[1729170581349,3.276,152.67,152.6,2.7586]
[1729170581546,15.74,152.71,152.61,15.74]
[1729170581746,3.2755,152.69,152.66,3.2759]
[1729170582746,3.2755,152.69,152.65,3.20179379]
[1729170582747,3.2754,152.69,152.67,3.2756]
[1729170584060,3.2756,152.68,152.66,3.2759]
[1729170587348,5.18,152.71,152.66,3.2759]
[1729170588257,3.2756,152.68,152.66,3.2759]
[1729170588761,5.18,152.71,152.68,3.2754]
[1729170589547,3.2753,152.7,152.68,3.2754]
[1729170594356,10.06,152.71,152.67,3.26026793]
[1729170594562,10.06,152.69,152.66,3.2759]
[1729170595056,3.2757,152.68,152.66,3.2759]
[1729170597655,10.06,152.69,152.66,3.2759]
[1729170597952,13.3355,152.69,152.66,3.2759]
[1729170598146,3.2755,152.69,152.66,3.2759]
[1729170600260,3.2755,152.69,152.65,13.34026808]
[1729170600453,3.2755,152.69,152.66,3.2759]
[1729170602560,3.2757,152.68,152.66,3.2759]
[1729170602756,10.06,152.69,152.65,13.34026808]
[1729170602955,10.06,152.68,152.64,3.2763]
[1729170603261,10.06,152.68,152.63,10.06]
[1729170603558,10.06,152.68,152.64,3.2763]
[1729170603766,3.2758,152.67,152.64,3.2763]
[1729170604468,3.2761,152.66,152.64,3.2763]
[1729170604965,10.06,152.65,152.59,15.1]
[1729170605167,3.2768,152.63,152.59,15.1]
[1729170605562,5.04,152.65,152.55,2.8804]
[1729170605769,13.3372,152.61,152.56,15.1]
[1729170606060,13.3372,152.61,152.59,3.2775]
[1729170606260,13.3372,152.61,152.56,13.33009809]
[1729170606667,13.3372,152.61,152.58,3.2775]
[1729170607061,3.2772,152.61,152.59,3.2774]
[1729170609768,10.06,152.62,152.59,3.2774]
[1729170609974,13.337,152.62,152.59,3.2774]
[1729170610169,10.06,152.62,152.58,3.2777]
[1729170610364,10.06,152.61,152.58,3.2777]
[1729170610765,3.2773,152.6,152.58,3.2777]
[1729170611965,10.06,152.61,152.56,13.33009809]
[1729170612165,3.2774,152.6,152.57,3.2779]
[1729170612567,3.2774,152.6,152.58,3.2777]
[1729170612769,3.2774,152.6,152.56,3.27009809]
[1729170612968,3.2774,152.6,152.56,10.06]
[1729170613272,3.2774,152.6,152.57,3.2778]
[1729170617466,13.3372,152.61,152.59,3.2775]
[1729170619281,13.3372,152.61,152.58,3.2776]
[1729170623580,3.2774,152.6,152.57,3.2778]
[1729170623781,10.06,152.6,152.56,3.21762143]
[1729170624083,10.06,152.6,152.55,10.06]
[1729170624282,3.2776,152.59,152.57,3.2779]
[1729170624584,3.2776,152.59,152.57,6.49113587]
[1729170628289,5.06,152.61,152.51,2.8046]
[1729170628290,10.06,152.58,152.51,2.8046]
[1729170628492,10.06,152.57,152.52,10.06]
[1729170628891,3.2782,152.56,152.54,3.2784]
[1729170629190,10.06,152.57,152.52,10.06]
[1729170629388,3.2789,152.53,152.47,4.94]
[1729170629893,3.2789,152.53,152.49,10.06]
[1729170630493,13.3387,152.54,152.52,3.279]
[1729170631299,13.3387,152.54,152.51,3.2791]
[1729170632484,3.2789,152.53,152.5,3.2793]
[1729170633497,3.2789,152.53,152.49,10.06]
[1729170633798,3.2789,152.53,152.51,3.2792]
[1729170634705,13.3386,152.54,152.51,3.2792]
[1729170635000,3.2786,152.54,152.51,13.3392]
[1729170636997,13.3386,152.54,152.51,3.2792]
[1729170638001,13.3386,152.54,152.52,3.279]
[1729170643700,4.94,152.55,152.54,3.2786]
[1729170644408,18.2781,152.57,152.55,3.2784]
[1729170644709,4.2134,152.64,152.55,10.06]
[1729170645009,3.2777,152.59,152.56,3.278]
[1729170645203,8.2177,152.59,152.56,3.278]
[1729170645702,4.94,152.59,152.56,3.278]
[1729170645907,3.2778,152.58,152.56,3.278]
[1729170649706,4.94,152.59,152.56,3.278]
[1729170649910,3.2778,152.58,152.56,3.278]
[1729170650508,13.3378,152.58,152.56,3.278]
[1729170653119,3.2778,152.58,152.56,3.278]
[1729170654415,3.2778,152.58,152.54,13.29102183]
[1729170654416,3.2781,152.57,152.55,3.2784]
[1729170656518,3.2782,152.56,152.54,3.2785]
[1729170657012,10.06,152.58,152.53,10.06]
[1729170657218,3.278,152.57,152.55,3.2784]
[1729170660328,3.278,152.57,152.53,10.06]
[1729170660529,13.338,152.57,152.54,3.2784]
[1729170663534,3.2785,152.55,152.52,10.06]
[1729170664429,3.2785,152.55,152.53,3.2788]
[1729170665530,8.0985,152.55,152.53,3.2788]
[1729170666135,10.06,152.54,152.47,1.4556]
[1729170666436,4.82,152.55,152.47,1.4556]
[1729170666437,10.06,152.52,152.47,11.5156]
[1729170667225,10.06,152.52,152.5,3.2793]
[1729170667531,10.06,152.52,152.47,11.5156]
[1729170668136,10.06,152.52,152.5,3.2793]
[1729170668535,3.2784,152.55,152.49,10.06]
[1729170668734,4.82,152.55,152.52,3.279]
[1729170669633,18.1585,152.55,152.52,3.279]
[1729170670838,18.1585,152.55,152.49,10.06]
[1729170671031,18.1585,152.55,152.53,3.2788]
[1729170672334,8.0985,152.55,152.53,3.2788]
[1729170672835,4.82,152.55,152.52,3.2788]
[1729170673135,8.0985,152.55,152.52,3.2788]
[1729170674440,10.06,152.54,152.47,11.5156]
[1729170675438,4.82,152.55,152.5,3.2793]
[1729170675439,10.06,152.52,152.5,3.2793]
[1729170678445,13.3389,152.53,152.51,3.2792]
[1729170679242,13.3385,152.55,152.53,3.2788]
[1729170679648,18.1585,152.55,152.53,3.2788]
[1729170679952,8.0985,152.55,152.53,3.2788]
[1729170681948,4.82,152.55,152.53,3.2788]
[1729170682649,18.1585,152.55,152.51,10.06]
[1729170682849,18.1585,152.55,152.52,3.2789]
[1729170683939,3.2788,152.54,152.51,3.2791]
[1729170684146,13.3388,152.54,152.51,3.2791]
[1729170694460,18.1585,152.55,152.53,3.2788]
[1729170694659,18.1585,152.55,152.49,10.06]
[1729170696058,1.3803,152.58,152.47,6.2756]
[1729170696359,4.82,152.61,152.59,3.2774]
[1729170696561,98.71896704,152.62,152.59,10.06]
[1729170697464,98.71896704,152.62,152.61,3.2771]
[1729170698269,98.71896704,152.62,152.6,3.2772]
[1729170698874,98.71896704,152.62,152.59,10.06]
[1729170698875,98.71896704,152.62,152.61,3.2771]
[1729170699574,14.88,152.64,152.61,3.2771]
[1729170700272,3.2767,152.63,152.6,3.2772]
[1729170700676,3.2767,152.63,152.59,10.06]
[1729170700971,4.82,152.64,152.59,10.06]
[1729170701174,18.1565,152.64,152.61,3.2769]
[1729170701375,14.88,152.64,152.61,3.2769]
[1729170701673,13.3368,152.63,152.6,3.2772]
[1729170701875,10.06,152.62,152.57,13.27515628]
[1729170702062,10.06,152.62,152.57,10.06]
[1729170702261,3.2773,152.6,152.57,3.22723951]
[1729170702465,3.2773,152.6,152.55,10.06]
[1729170703273,3.2773,152.6,152.55,13.36307296]
[1729170703985,3.2773,152.6,152.57,3.2778]
[1729170708678,3.2776,152.59,152.57,3.2778]
[1729170709276,3.2774,152.6,152.57,3.2778]
[1729170712380,3.2774,152.6,152.58,3.2776]
[1729170712986,3.2774,152.6,152.56,10.06]
[1729170712987,13.3371,152.61,152.59,3.2774]
[1729170713884,3.2771,152.61,152.59,3.2774]
[1729170714084,18.157,152.62,152.59,3.2774]
[1729170714587,14.88,152.62,152.59,3.2774]
[1729170714788,3.2771,152.61,152.59,3.2774]
[1729170716883,3.2775,152.6,152.57,3.2778]
[1729170717083,3.2775,152.6,152.56,10.06]
[1729170717789,3.2775,152.6,152.57,3.27684508]
[1729170718396,3.2775,152.6,152.58,3.2777]
[1729170721893,10.06,152.61,152.57,3.27815635]
[1729170722095,3.2774,152.6,152.58,3.2777]
[1729170723090,10.06,152.59,152.46,3.21003265]
[1729170723288,10.06,152.56,152.5,10.06]
[1729170723491,10.06,152.54,152.48,7.6307]
[1729170723685,13.3387,152.54,152.51,3.2791]
[1729170724295,13.3389,152.53,152.51,3.2791]
[1729170724492,10.06,152.53,152.51,3.2791]
[1729170724695,10.06,152.55,152.49,10.06]
[1729170724900,3.2787,152.54,152.49,10.06]
[1729170725303,3.2787,152.54,152.5,10.06]
[1729170725498,3.2787,152.54,152.51,3.2792]
[1729170725899,10.06,152.55,152.51,3.2792]
[1729170726201,10.06,152.55,152.52,3.2789]
[1729170726202,13.3384,152.55,152.52,3.2789]
[1729170727890,10.06,152.55,152.48,2.8107]
[1729170728095,3.2789,152.53,152.5,3.2794]
[1729170728291,10.06,152.53,152.5,3.2794]
[1729170728501,13.3392,152.52,152.49,3.2796]
[1729170729601,3.2794,152.51,152.48,3.2797]
[1729170729803,10.06,152.5,152.48,3.2797]
[1729170730099,4.82,152.53,152.5,3.2795]
[1729170730100,13.3391,152.52,152.5,3.2795]
[1729170732201,3.2793,152.51,152.49,6.62782001]
[1729170732504,10.06,152.52,152.49,6.62782001]
[1729170733305,13.3391,152.52,152.49,6.62782001]
[1729170734808,10.06,152.52,152.49,6.62782001]
[1729170735001,3.2792,152.51,152.49,6.62782001]
[1729170735207,13.3392,152.51,152.49,6.62782001]
[1729170737705,10.06,152.51,152.49,6.62782001]
[1729170738610,3.2791,152.52,152.49,6.62782001]
[1729170738908,13.3391,152.52,152.49,6.62782001]
[1729170747316,10.06,152.52,152.49,6.62782001]
[1729170747510,3.2793,152.51,152.49,6.62782001]
[1729170749118,10.06,152.52,152.49,3.34822001]
[1729170749310,10.06,152.52,152.47,10.06]
[1729170749711,13.3392,152.52,152.49,3.2795]
[1729170750619,13.3392,152.52,152.47,13.41750967]
[1729170751014,13.3392,152.52,152.47,3.35750967]
[1729170751213,3.2793,152.51,152.49,3.2795]
[1729170751414,3.2793,152.51,152.49,6.59370813]
[1729170753609,243.68,152.66,152.5,10.06]
[1729170753916,10.06,152.55,152.5,10.06]
[1729170754617,13.3385,152.55,152.5,10.06]
[1729170754918,10.06,152.55,152.5,10.06]
[1729170755918,13.3385,152.55,152.5,10.06]
[1729170756421,3.2788,152.54,152.51,3.2791]
[1729170757309,13.3391,152.52,152.49,6.59370813]
[1729170757612,10.06,152.5,152.45,1.4165]
[1729170757818,10.06,152.5,152.49,3.2797]
[1729170758015,10.06,152.5,152.49,6.53138017]
[1729170758215,10.06,152.5,152.49,3.2797]
[1729170758622,10.06,152.5,152.48,3.2798]
[1729170759420,10.06,152.5,152.48,6.56546848]
[1729170759621,10.06,152.5,152.48,3.2798]
[1729170760216,10.06,152.5,152.48,6.49625162]
[1729170764123,13.3395,152.5,152.48,6.49625162]
[1729170765531,10.06,152.5,152.45,11.4765]
[1729170765728,13.3397,152.49,152.47,3.28]
[1729170766431,10.06,152.49,152.47,3.28]
[1729170768547,13.3397,152.49,152.47,3.28]
[1729170769045,13.3396,152.5,152.45,14.70442774]
[1729170769747,13.3396,152.5,152.48,3.2799]
[1729170772243,10.06,152.5,152.45,14.70442774]
[1729170773343,13.3395,152.5,152.48,3.2798]
[1729170774043,10.06,152.49,152.46,3.2802]
[1729170774243,10.06,152.49,152.45,3.22792774]
[1729170774450,14.88,152.49,152.43,1.3259]
[1729170774745,3.28,152.48,152.45,3.2803]
[1729170774953,10.06,152.47,152.43,3.29200613]
[1729170775148,10.06,152.47,152.41,14.88]
[1729170775350,13.3402,152.47,152.44,3.2806]
[1729170775653,4.82,152.49,152.44,10.06]
[1729170775855,8.0994,152.51,152.48,3.2798]
[1729170776153,4.82,152.51,152.48,3.2798]
[1729170776655,3.2796,152.5,152.48,3.2798]
[1729170778647,13.3396,152.5,152.48,3.2798]
[1729170778857,10.06,152.49,152.48,3.2798]
[1729170781248,18.1593,152.51,152.49,3.2796]
[1729170781656,14.88,152.51,152.46,10.06]
[1729170781849,4.82,152.51,152.49,3.2795]
[1729170782043,4.82,152.51,152.47,10.06]
[1729170782242,4.2811,152.56,152.48,10.06]
[1729170782451,4.2811,152.56,152.51,10.06]
[1729170782452,4.8,152.55,152.51,10.06]
[1729170782955,8.0786,152.55,152.52,3.2789]
[1729170783153,8.0786,152.55,152.52,6.488338]
[1729170783758,3.2786,152.54,152.52,6.488338]
[1729170784156,3.2786,152.54,152.51,10.06]
[1729170784157,10.06,152.54,152.45,4.8]
[1729170784361,10.06,152.52,152.5,3.2793]
[1729170784656,10.06,152.52,152.44,14.86]
[1729170784657,10.06,152.51,152.44,14.86]
[1729170784956,10.06,152.49,152.48,3.2799]
[1729170785551,10.06,152.49,152.44,4.8]
[1729170785749,10.06,152.49,152.44,14.86]
[1729170786058,10.06,152.49,152.47,3.2799]
[1729170786857,11.4959,152.51,152.48,3.2799]
[1729170790556,10.06,152.49,152.48,3.2799]
[1729170792156,14.7752,152.51,152.49,3.2796]
[1729170794161,11.4959,152.51,152.49,3.2796]
[1729170794861,14.86,152.53,152.52,3.279]
[1729170796563,14.86,152.53,152.51,3.2791]
[1729170797051,18.1388,152.53,152.51,3.2791]
[1729170803162,13.3388,152.53,152.51,3.2791]
[1729170803366,18.1388,152.53,152.51,3.2791]
[1729170806867,14.86,152.53,152.51,3.2791]
[1729170808073,18.1389,152.53,152.51,3.2791]
[1729170817472,4.8,152.53,152.52,3.279]
[1729170817769,4.8,152.54,152.5,10.06]
[1729170817974,4.8,152.54,152.51,13.39334917]
[1729170818177,2.7426,152.57,152.51,10.06]
[1729170818371,4.8,152.56,152.51,10.06]
[1729170818773,4.8,152.56,152.55,3.2783]
[1729170819675,14.6648,152.57,152.55,3.2783]
[1729170819976,4.8,152.56,152.55,3.2783]
[1729170820375,4.8,152.56,152.52,3.21328168]
[1729170820573,4.8,152.56,152.55,3.2783]
[1729170820877,4.8,152.56,152.53,10.06]
[1729170821077,4.8,152.56,152.54,3.2785]
[1729170821675,13.3385,152.55,152.52,3.24238113]
[1729170821874,10.06,152.54,152.49,10.06]
[1729170822183,10.06,152.53,152.5,3.23418087]
[1729170822568,10.06,152.53,152.51,3.2791]
[1729170822875,4.8,152.56,152.48,4.8]
[1729170822876,10.06,152.52,152.48,4.8]
[1729170823174,18.1391,152.52,152.5,3.2793]
[1729170826285,14.86,152.52,152.46,10.06]
[1729170826483,10.06,152.49,152.45,10.06]
[1729170827483,10.06,152.49,152.48,3.2798]
[1729170828385,10.06,152.49,152.47,3.28]
[1729170834407,10.06,152.48,152.47,3.28]
[1729170840500,13.3396,152.5,152.45,10.06]
[1729170840797,13.3396,152.5,152.48,3.2799]
[1729170841392,10.06,152.51,152.5,3.2794]
[1729170841591,4.8,152.52,152.49,3.36287958]
[1729170841791,4.8,152.52,152.49,13.42287958]
[1729170842095,10.06,152.51,152.5,3.2793]
[1729170848404,10.06,152.51,152.49,3.3317089]
[1729170848405,10.06,152.51,152.43,12.9012]
[1729170848600,10.06,152.48,152.43,12.9012]
[1729170849312,10.06,152.48,152.47,3.28]
[1729170850206,10.06,152.48,152.47,3.20100797]
[1729170852095,10.06,152.48,152.43,12.9012]
[1729170852302,10.06,152.48,152.46,3.2803]
[1729170853405,13.3399,152.48,152.46,3.2803]
[1729170856611,10.06,152.48,152.47,3.2801]
[1729170857706,6.2452,152.52,152.47,3.2801]
[1729170857912,10.06,152.5,152.47,3.2801]
[1729170858413,3.2797,152.49,152.47,3.2801]
[1729170860512,10.06,152.5,152.45,10.06]
[1729170860715,101.51268687,152.55,152.49,10.06]
[1729170861017,10.06,152.53,152.49,13.35824037]
[1729170862030,98.75798687,152.55,152.5,10.06]
[1729170862213,4.8,152.54,152.5,10.06]
[1729170863217,4.8,152.54,152.53,3.2788]
[1729170870425,106.83648687,152.55,152.53,3.2788]
[1729170871422,8.0785,152.55,152.53,3.2788]
[1729170871621,18.1385,152.55,152.53,3.2788]
[1729170874530,8.0785,152.55,152.53,3.2788]
[1729170875331,4.8,152.55,152.51,10.06]
[1729170875539,4.8,152.55,152.54,3.2786]
[1729170877330,13.3379,152.58,152.56,3.2781]
[1729170877331,18.1379,152.58,152.56,3.2781]
[1729170879733,8.0777,152.59,152.56,3.278]
[1729170879929,4.8,152.59,152.54,10.06]
[1729170880131,4.8,152.59,152.55,10.06]
[1729170880327,8.0775,152.59,152.57,3.2778]
[1729170880726,4.8,152.59,152.55,10.06]
[1729170880928,4.8,152.59,152.58,3.2777]
[1729170881624,4.8,152.59,152.55,10.06]
[1729170881625,4.8,152.59,152.57,3.2778]
[1729170883233,11.5198,152.61,152.57,3.2778]
[1729170883433,3.2775,152.59,152.56,3.278]
[1729170884032,3.2777,152.58,152.56,3.278]
[1729170886124,3.2783,152.56,152.53,3.2787]
[1729170886329,10.06,152.55,152.53,3.2787]
[1729170886636,10.06,152.55,152.52,3.2789]
[1729170887131,10.06,152.55,152.5,10.06]
[1729170888636,13.3385,152.55,152.53,3.2787]
[1729170890937,10.06,152.54,152.49,3.29824037]
[1729170891125,10.06,152.53,152.48,2.868]
[1729170891330,10.06,152.53,152.48,12.928]
[1729170891531,13.3389,152.53,152.5,3.2793]
[1729170891741,13.3389,152.53,152.5,6.56082714]
[1729170891935,13.3389,152.53,152.5,3.2793]
[1729170892531,13.3389,152.53,152.5,6.50703699]
[1729170892834,13.3389,152.53,152.51,3.2792]
[1729170893835,3.2789,152.53,152.51,3.2792]
[1729170894433,13.3387,152.54,152.51,3.2792]
[1729170896340,3.2789,152.53,152.5,3.2793]
[1729170902844,3.2789,152.53,152.51,3.2792]
[1729170903243,10.06,152.54,152.51,3.2792]
[1729170903444,13.3388,152.54,152.51,3.2792]
[1729170903746,10.06,152.54,152.51,3.2792]
[1729170904746,3.2789,152.53,152.51,3.2792]
[1729170910143,13.3386,152.54,152.52,3.2789]
[1729170910350,4.8,152.56,152.51,10.06]
[1729170910545,14.86,152.56,152.52,10.06]
[1729170910750,18.1383,152.56,152.54,3.2784]
[1729170911056,14.86,152.56,152.54,3.2784]
[1729170911756,10.06,152.55,152.51,10.06]
[1729170911950,13.3386,152.55,152.52,3.2789]
[1729170913167,18.1386,152.55,152.52,3.2789]
[1729170913347,3.2789,152.53,152.51,3.2792]
[1729170913550,10.06,152.53,152.48,2.868]
[1729170913946,13.3389,152.53,152.51,3.2792]
[1729170914358,3.2789,152.53,152.51,3.2792]
[1729170917159,10.06,152.54,152.5,13.27133756]
[1729170917458,4.8,152.55,152.51,10.06]
[1729170918259,8.0784,152.55,152.53,3.2786]
[1729170920252,3.2784,152.55,152.53,3.2786]
[1729170934775,8.0782,152.56,152.54,3.2785]
[1729170934975,4.8,152.56,152.54,3.2785]
[1729170935169,11.5138,152.6,152.55,10.06]
[1729170935375,3.2779,152.58,152.55,13.3382]
[1729170935973,3.2779,152.58,152.55,16.57502847]
[1729170936174,3.278,152.57,152.55,16.57502847]
[1729170936382,2.8512,152.62,152.56,10.06]
[1729170936571,4.78,152.61,152.58,10.06]
[1729170936774,3.2774,152.6,152.58,10.06]
[1729170937180,3.2774,152.6,152.58,13.3377]
[1729170939279,3.2774,152.6,152.58,3.2777]
[1729170939476,4.78,152.61,152.57,10.06]
[1729170939682,10.06,152.58,152.54,10.06]
[1729170940578,3.2781,152.57,152.55,3.2783]
[1729170941980,10.06,152.58,152.54,3.2785]
[1729170941981,3.2783,152.56,152.54,3.2785]
[1729170942170,10.06,152.58,152.53,10.06]
[1729170942369,3.2786,152.55,152.53,3.2787]
[1729170942877,13.3388,152.54,152.52,3.33323486]